[Event "1st Bella Italia International 2022"]
[Site "Lignano"]
[Date "2022.08.20"]
[Round "6.4"]
[White "Das, Sayantan"]
[Black "Zeller, Frank"]
[Result "1-0"]
[ECO "C92"]
[WhiteElo "2449"]
[BlackElo "2356"]
[Annotator "TA"]
[PlyCount "103"]
[EventDate "2022.08.18"]
[EventCountry "ITA"]
[SourceTitle "playchess.com"]
[Source "ChessBase"]
[SourceQuality "1"]
[TimeControl "5400+30"]

{[%evp 35,103,6,2,6,21,21,97,99,110,104,110,92,91,95,102,94,94,67,80,84,118,106,162,154,147,147,192,124,176,175,252,242,237,243,307,168,195,85,113,43,61,19,19,19,139,137,143,127,141,110,184,73,96,66,76,54,263,263,263,263,263,263,263,259,597,577,29976,29978,29977,29978]} 1. e4 {[%emt 1:31:00]} e5 {[%emt 0:08:49]} 2. Nf3 {[%emt 0:00:00]} Nc6 {[%emt 0:00:20]} 3. Bb5 {[%emt 0:00:00]} a6 {[%emt 0:00:29]} 4. Ba4 {[%emt 0:00:00]} Nf6 {[%emt 0:00:15]} 5. O-O {[%emt 0:00:00]} Be7 {[%emt 0:00:37]} 6. Re1 {[%emt 0:00:00]} b5 {[%emt 0:00:19]} 7. Bb3 {[%emt 0:00:00]} d6 {[%emt 0:00:11]} 8. c3 {[%emt 0:00:00]} O-O {[%emt 0:00:09]} 9. h3 {[%emt 0:00:00]} Bb7 {[%emt 0:00:30]} 10. d4 {[%emt 0:00:00]} Re8 {[%emt 0:00:24]} 11. Nbd2 {[%emt 0:00:00]} Bf8 {[%emt 0:01:02]} 12. a4 {[%emt 0:00:00]} h6 {[%emt 0:00:25]} 13. Bc2 {[%emt 0:00:00]} exd4 {[%emt 0:01:22]} 14. cxd4 {[%emt 0:00:00]} Nb4 {[%emt 0:00:11]} 15. Bb1 {[%emt 0:00:00]} c5 {[%emt 0:00:15]} 16. d5 {[%emt 0:00:00]} Nd7 {[%emt 0:01:00]} 17. Ra3 {[%emt 0:00:00]} c4 {[%emt 0:01:44]} 18. Nd4 {[%emt 0:00:00]} Qf6 {[%emt 1:21:28]} 19. N2f3 {[%emt 0:00:00] C92: Closed Ruy Lopez: 9...Be6, Karpov and Flohr-Zaitsev Variations.} Nc5 {[%emt 0:00:00]} 20. b3 {[%emt 0:00:00] [#]} c3 $146 {[%emt 0:00:00]} (20... Nbd3 $11 {keeps the balance.} 21. Bxd3 Nxd3) ({Predecessor:} 20... Nbd3 21. Bxd3 Nxd3 22. Re3 b4 23. Ra1 Ne5 24. Nxe5 dxe5 25. Nf5 c3 26. Rf3 Qd8 27. Nxh6+ gxh6 28. Rg3+ Kh7 29. Qg4 {1-0 (31) So,W (2772)-Le,Q (2709) chess24.com INT 2021}) 21. axb5 $16 {[%emt 0:00:00] White is better.} axb5 {[%emt 0:00:00]} 22. Re3 {[%emt 0:00:00]} Rac8 {[%emt 0:00:00]} (22... Rxa3 $2 23. Bxa3 c2 24. Nxc2 $18 (24. Bxc2 Nxc2 25. Qxc2 Qg6 $18)) 23. Ra7 {[%emt 0:00:00]} (23. Rxc3 Nxd5 24. exd5 b4 25. Rxc5 (25. Qc2 $2 g6 $19) 25... dxc5 $17) (23. Nxb5 $6 c2 24. Bxc2 Nxc2 25. Qxc2 Nxe4 $1 $11) 23... Qd8 {[%emt 0:00:00]} 24. Ba3 $1 {[%emt 0:00:00]} (24. Rxc3 $6 Nxe4 25. Re3 (25. Rxc8 Qxc8 26. Nxb5 Bxd5 $11) 25... Bxd5 $11) (24. Nxb5 c2 25. Bxc2 Nxc2 26. Qxc2 Nxe4 $17) 24... c2 {[%emt 0:00:00]} 25. Nxc2 {[%emt 0:00:00]} (25. Bxc2 Nxc2 26. Nxc2 Qb6 27. Bxc5 dxc5 $14) 25... Nxc2 {[%emt 0:00:00]} 26. Bxc2 {[%emt 0:00:00] Strongly threatening b4.} Qb6 {[%emt 0:00:00]} 27. Bxc5 {[%emt 0:00:00]} Rxc5 {[%emt 0:00:00]} 28. Ra2 {[%emt 0:00:00]} Rec8 {[%emt 0:00:00]} (28... b4 $16 {was called for.}) 29. b4 $1 $36 {[%emt 0:00:00][%mdl 2048] Keeping Black busy.} Rc4 {[%emt 0:00:00]} 30. Qd2 {[%emt 0:00:00]} g6 {[%emt 0:00:00]} 31. Bd3 {[%emt 0:00:00]} (31. Rea3 $1 $18) 31... Rc3 {[%emt 0:00:00]} (31... Rc1+ $16 32. Re1 Rxe1+ 33. Nxe1 (33. Qxe1 Bg7 $16) 33... Bg7) 32. Bf1 {[%emt 0:00:00]} Bg7 {[%emt 0:00:00]} (32... Rxe3 $142 33. Qxe3 Qxe3 34. fxe3 f5) 33. Rxc3 {[%emt 0:00:00]} Rxc3 {[%emt 0:00:00]} 34. Ra5 {[%emt 0:00:00]} Bc8 {[%emt 0:00:37]} 35. Bd3 {[%emt 0:03:02]} (35. Rxb5 $6 Qc7 $16) (35. Bxb5 $6 Kh7 36. Qf4 Rc7 $16) (35. e5 $142 Rc7 36. Rxb5) 35... Qc7 {[%emt 0:01:43]} 36. Kh2 {[%emt 0:01:52]} ({Worse is} 36. Rxb5 Ba6 37. e5 Rc1+ 38. Kh2 Bxb5 39. Bxb5 Rc2 $17) (36. Bxb5 $18 {is more deadly. Nd4 is the strong threat.} Rc2 37. Ra7 $3 {[%mdl 512]} Qxa7 38. Qxc2 Qa1+ 39. Kh2) 36... Rb3 $16 {[%emt 0:01:35] [#]} 37. Bxb5 {[%emt 0:03:37]} ({White must play} 37. Ra2 $1 $16) 37... Rb2 {[%emt 0:00:56]} 38. Qe3 {[%emt 0:01:15]} Rxb4 {[%emt 0:00:16]} 39. Ra7 {[%emt 0:00:05]} Qd8 {[%emt 0:01:49]} (39... Qb8 $1 $11 40. Be8 Rb3) 40. Bc6 {[%emt 0:00:31]} Rb8 {[%emt 0:01:18]} 41. g3 {[%emt 0:05:39]} Qf6 {[%emt 0:00:20]} 42. Kg2 {[%emt 0:00:13] White is much more active.} g5 {[%emt 0:00:29]} (42... Qc3 $16) 43. Rc7 {[%emt 0:01:10]} (43. g4 $18 {has better winning chances.}) 43... g4 {[%emt 0:00:50]} 44. hxg4 {[%emt 0:00:08]} Bxg4 {[%emt 0:00:01]} 45. Nh4 {[%emt 0:01:07]} Rb4 $2 {[%emt 0:01:36] This costs Black the game.} (45... Qd8 $1 $14 46. Ra7 Qg5) 46. Bd7 $18 {[%emt 0:01:39]} Bxd7 {[%emt 0:00:58]} 47. Rxd7 {[%emt 0:00:02]} Qe5 {[%emt 0:00:26]} 48. f3 {[%emt 0:01:13]} Rb2+ {[%emt 0:00:59]} 49. Kh3 {[%emt 0:00:06]} Qe8 $2 {[%emt 0:00:36]} (49... Rb1 50. Ra7 (50. Nf5 Rh1+ 51. Kg2 Qa1 $11) 50... Bf8) 50. Qa7 {[%emt 0:00:46]} Bd4 {[%emt 0:00:38] [#]} 51. Qxd4 {[%emt 0:00:22]} Qxd7+ {[%emt 0:00:11] [#]} 52. Nf5 $1 {[%emt 0:00:07] Weighted Error Value: White=0.19 (very precise) /Black=0.67} 1-0

[Event "1st Bella Italia International 2022"]
[Site "Lignano"]
[Date "2022.08.20"]
[Round "6.5"]
[White "Jonkman, Harmen"]
[Black "Cappelletto, Joshuaede"]
[Result "1-0"]
[ECO "B22"]
[WhiteElo "2373"]
[BlackElo "2266"]
[Annotator "TA"]
[PlyCount "85"]
[EventDate "2022.08.18"]
[EventCountry "ITA"]
[SourceTitle "playchess.com"]
[Source "ChessBase"]
[SourceQuality "1"]
[TimeControl "5400+30"]

{[%evp 9,85,8,20,14,23,-4,84,80,227,227,227,227,228,222,243,260,252,249,246,257,252,245,264,269,259,266,277,265,251,247,281,282,281,272,279,284,266,275,286,286,341,339,335,327,435,423,433,430,502,502,506,515,530,515,544,563,571,568,635,617,722,709,764,683,701,695,710,711,689,673,809,796,979,941,921,878,29979,29980]} 1. e4 {[%emt 0:00:02]} c5 {[%emt 0:04:25]} 2. c3 {[%emt 0:00:08]} d5 {[%emt 0:00:25]} 3. exd5 {[%emt 0:00:06]} Nf6 {[%emt 0:00:05]} 4. Nf3 {[%emt 0:00:26]} Nxd5 {[%emt 0:00:06]} 5. d4 {[%emt 0:00:39]} cxd4 {[%emt 0:01:21]} 6. Nxd4 {[%emt 0:00:03] B22: Sicilian: 2 c3.} e5 {[%emt 0:00:36]} 7. Nf3 {[%emt 0:08:09] [#]} Qd6 $146 {[%emt 0:10:19]} (7... Nc6 $11 {remains equal.}) ({Predecessor:} 7... e4 8. Qa4+ Nc6 9. Qxe4+ Be7 10. Be2 O-O 11. O-O Re8 12. Qc2 Qc7 13. a3 Be6 {1-0 (34) Dovbnia,N (1385)-Birks,J Batumi 2016}) 8. Na3 $16 {[%emt 0:01:12] Hoping for Nb5. White is better.} Nb6 {[%emt 0:31:37]} (8... Be6 $16) 9. Qxd6 $18 {[%emt 0:02:18]} Bxd6 {[%emt 0:00:08]} 10. Nb5 {[%emt 0:00:08]} Ke7 {[%emt 0:00:08] [#]} 11. Ng5 {[%emt 0:00:44]} Rd8 {[%emt 0:00:56]} 12. Ne4 {[%emt 0:01:00] Threatens to win with Be3.} (12. Nxh7 Bf5 13. Ng5 f6 $11) 12... Nc6 {[%emt 0:00:28]} 13. Nbxd6 {[%emt 0:00:40]} Rxd6 {[%emt 0:00:06]} 14. Nxd6 {[%emt 0:00:07]} Kxd6 {[%emt 0:00:04]} 15. b3 {[%emt 0:19:49]} Bf5 {[%emt 0:00:12]} 16. Ba3+ {[%emt 0:00:25]} Kc7 {[%emt 0:00:17]} 17. O-O-O {[%emt 0:00:15]} Re8 {[%emt 0:00:06]} 18. Bd6+ {[%emt 0:02:16]} Kc8 {[%emt 0:01:41]} 19. Bb5 {[%emt 1:01:33]} h5 {[%emt 0:00:07]} 20. Rhe1 {[%emt 0:00:00]} f6 {[%emt 0:00:09]} 21. f3 {[%emt 0:00:00]} h4 {[%emt 0:00:10]} 22. Kb2 {[%emt 0:00:00]} a6 {[%emt 0:00:06]} 23. Bd3 {[%emt 0:00:00]} Bxd3 {[%emt 0:00:55]} 24. Rxd3 {[%emt 0:00:00]} g5 {[%emt 0:00:12]} 25. Red1 {[%emt 0:00:00]} Nd7 {[%emt 0:00:31]} 26. Ba3 {[%emt 0:00:00]} Nf8 {[%emt 0:01:03]} 27. Bxf8 {[%emt 0:00:00]} Rxf8 {[%emt 0:00:07][%mdl 4096] Endgame KRR-KRN} 28. Rd7 {[%emt 0:00:00] Prevents Rf7.} Nd8 {[%emt 0:00:08]} 29. Re7 {[%emt 0:00:00]} Nc6 {[%emt 0:00:10]} 30. Rg7 {[%emt 0:00:00]} Nb8 {[%emt 0:00:11]} 31. Rd6 {[%emt 0:00:00]} a5 {[%emt 0:00:05]} 32. a4 {[%emt 0:00:00]} h3 {[%emt 0:01:30]} 33. g3 {[%emt 0:00:00]} f5 {[%emt 0:00:07]} 34. Rxg5 {[%emt 0:00:00]} e4 {[%emt 0:00:08]} 35. f4 {[%emt 0:00:00]} Nd7 {[%emt 0:01:07]} 36. Rd5 {[%emt 0:00:00]} e3 {[%emt 0:01:37] And now ...e2 would win.} 37. Rd1 {[%emt 0:00:00]} Nc5 {[%emt 0:00:22]} 38. Kc2 {[%emt 0:00:00]} ({Not} 38. Rd5 Ne4 39. Rd3 (39. Rxa5 $2 Rf7 $19) (39. Rdxf5 $2 Rxf5 40. Rxf5 e2 $19) 39... Nxg5 40. fxg5 f4 41. gxf4 Rxf4 42. Rxe3 Rf2+ 43. Kb1 Rxh2 $16) 38... Ne4 {[%emt 0:01:27]} 39. Rh5 {[%emt 0:00:00]} Rf6 {[%emt 0:00:05]} 40. Rd3 {[%emt 0:00:00]} Rd6 {[%emt 0:00:14]} 41. Rxd6 {[%emt 0:00:00]} e2 {[%emt 0:00:07] [#]} 42. Rd1 $3 {[%emt 0:00:00]} Nxc3 {[%emt 0:00:04]} (42... exd1=Q+ 43. Kxd1) 43. Re1 {[%emt 0:00:00] Black did not feel at home in the position after the opening.  Weighted Error Value: White=0.04 (flawless) /Black=0.29 (precise)} 1-0

[Event "1st Bella Italia International 2022"]
[Site "Lignano"]
[Date "2022.08.20"]
[Round "6.6"]
[White "Lapiccirella, Daniele"]
[Black "Aaron, Deepak"]
[Result "0-1"]
[ECO "E55"]
[WhiteElo "2173"]
[BlackElo "2221"]
[Annotator "TA"]
[PlyCount "124"]
[EventDate "2022.08.18"]
[EventCountry "ITA"]
[SourceTitle "playchess.com"]
[Source "ChessBase"]
[SourceQuality "1"]
[TimeControl "5400+30"]

{[%evp 25,124,10,16,7,8,-8,-18,-19,-17,-76,-74,-85,-71,-66,-75,-83,-69,-77,-22,-85,-75,-91,-82,-88,-81,-88,-76,-115,-89,-95,-53,-109,-94,-97,-89,-97,-88,-102,-96,-137,-67,-160,-163,-247,-240,-419,-427,-401,-397,-465,-456,-468,-453,-405,-208,-559,-558,-537,-537,-446,-339,-1071,-1060,-1071,-1071,-1060,-1060,-1046,-1045,-1033,-1000,-935,-696,-1008,-1006,-931,-924,-734,-690,-29985,-29971,-29972,-29971,-29973,-29973,-29973,-29972,-29971,-29972,-29969,-29965,-29966,-29969,-29980,-29977,-29976,-29977,-29974,-29977,-29982,-5057]} 1. d4 {[%emt 0:00:03]} e6 {[%emt 0:04:33]} 2. c4 {[%emt 0:00:09]} Nf6 {[%emt 0:00:04]} 3. Nc3 {[%emt 0:00:05]} Bb4 {[%emt 0:00:04]} 4. Nf3 {[%emt 0:00:06]} O-O {[%emt 0:00:25]} 5. e3 {[%emt 0:00:10]} c5 {[%emt 0:00:16]} 6. Bd3 {[%emt 0:00:19]} d5 {[%emt 0:00:23]} 7. O-O {[%emt 0:00:40]} cxd4 {[%emt 0:01:57]} 8. exd4 {[%emt 0:00:14]} dxc4 {[%emt 0:01:18]} 9. Bxc4 {[%emt 0:00:07]} Qc7 {[%emt 0:02:53]} 10. Qe2 {[%emt 0:02:00]} Bxc3 {[%emt 0:05:35]} 11. bxc3 {[%emt 0:00:12]} Nbd7 {[%emt 0:03:21]} 12. Bd2 {[%emt 0:23:36]} b6 {[%emt 0:01:01]} 13. Bd3 {[%emt 0:00:24]} Bb7 {[%emt 0:00:22] [#]} 14. Rfc1 $146 {[%emt 0:09:27] E55: Nimzo-Indian: Rubinstein: Main Line: 7...dxc4 8 Bxc4 Nbd7.} ({Predecessor:} 14. Rac1 Rfe8 15. Rfe1 Qd6 16. Bg5 Rac8 17. Bh4 Nh5 18. Qe3 Qf4 19. Bb5 Bc6 20. a4 Qxe3 21. fxe3 f5 {1-0 (44) Sasikiran,K (2675)-Nisipeanu,L (2696) Olite 2006}) 14... Rfe8 {[%emt 0:07:53]} 15. Bg5 {[%emt 0:21:11]} Rac8 {[%emt 0:11:51]} 16. Bb5 {[%emt 0:12:12] The position is equal.} Ne4 {[%emt 0:08:54]} 17. c4 {[%emt 0:05:48]} (17. Be3 $11) 17... Nxg5 $17 {[%emt 0:09:12] Black is more active.} 18. Nxg5 {[%emt 0:00:09][%cal Od4d5]} h6 {[%emt 0:00:13]} 19. Nf3 {[%emt 0:00:29][%cal Oc4c5]} Red8 {[%emt 0:03:09]} 20. Rd1 {[%emt 0:12:45]} Qf4 {[%emt 0:03:30]} 21. Qe3 {[%emt 0:01:06]} Qg4 {[%emt 0:01:07]} (21... Qf6 $17) 22. h3 {[%emt 0:00:14]} (22. d5 $1 $11 Nc5 23. h3) 22... Qf5 {[%emt 0:05:49]} 23. Rac1 {[%emt 0:00:15][%cal Od4d5]} Bxf3 {[%emt 0:01:56]} 24. Qxf3 {[%emt 0:00:18]} Qxf3 {[%emt 0:00:04]} 25. gxf3 {[%emt 0:00:05]} Kf8 {[%emt 0:00:53]} 26. Kf1 {[%emt 0:02:44]} Ke7 {[%emt 0:02:20]} 27. Ke2 {[%emt 0:00:24]} e5 {[%emt 0:01:48] White must now prevent ...exd4.} 28. c5 {[%emt 0:06:32]} (28. d5 $15) 28... bxc5 {[%emt 0:06:19]} 29. Bxd7 {[%emt 0:00:05]} Rxd7 {[%emt 0:00:06]} 30. dxe5 {[%emt 0:00:04]} Rxd1 {[%emt 0:00:25]} 31. Rxd1 {[%emt 0:00:07][%mdl 4096] Endgame KR-KR} Rc6 {[%emt 0:00:52] Against Rd6} 32. Kd3 {[%emt 0:02:29] [#]} Ra6 {[%emt 0:00:51]} (32... Ke6 $1 $17 33. Kc4 Ra6) 33. Rd2 {[%emt 0:00:48]} (33. Rc1 $1 $15) 33... Ke6 {[%emt 0:02:07]} 34. Kc4 {[%emt 0:00:15]} (34. f4 {is a better defense.}) 34... Kxe5 $19 {[%emt 0:00:58]} 35. Kxc5 $2 {[%emt 0:00:05]} (35. Rd7 {was worth a try.}) 35... Kf4 {[%emt 0:00:18]} 36. Kb5 {[%emt 0:01:05]} ({But not} 36. Rd7 $2 f5 37. Kb4 (37. Rxg7 $2 Kxf3 38. Kd4 f4 $19) 37... Rxa2 38. Rxg7 a5+ 39. Kb5 Rxf2 $19) 36... Rb6+ {[%emt 0:00:08]} 37. Kc5 {[%emt 0:00:18]} Kxf3 {[%emt 0:05:35]} 38. Rd7 {[%emt 0:00:10]} Rf6 {[%emt 0:00:36]} 39. Rxa7 {[%emt 0:00:07]} Kxf2 {[%emt 0:01:00]} (39... Kg2 $142 40. a4 Kxh3) 40. Rd7 {[%emt 0:00:06]} Kg2 {[%emt 0:04:01]} 41. a4 {[%emt 0:01:12]} Kxh3 {[%emt 0:00:46] [#] Strongly threatening ...g5.} 42. a5 {[%emt 0:00:09]} g5 {[%emt 0:01:16] aiming for ...g4.} 43. Rd3+ $2 {[%emt 0:00:56]} (43. Rd6 Rxd6 44. Kxd6) 43... Kh4 {[%emt 0:01:16]} 44. Rd6 {[%emt 0:00:48]} Rxd6 {[%emt 0:02:37]} 45. Kxd6 {[%emt 0:00:06] KP-KP} g4 {[%emt 0:00:03]} 46. a6 {[%emt 0:00:02]} g3 {[%emt 0:00:07]} 47. a7 {[%emt 0:00:03]} g2 {[%emt 0:00:04]} 48. a8=Q {[%emt 0:00:05]} g1=Q {[%emt 0:00:06] KQ-KQ} 49. Ke7 {[%emt 0:01:30]} f5 {[%emt 0:00:45][%cal Bf7f5,Bf5f4][%mdl 32]} 50. Qf3 {[%emt 0:00:14]} Qg4 {[%emt 0:00:38]} 51. Qh1+ {[%emt 0:00:24]} Kg5 {[%emt 0:00:10] ( -> ...Qe4+)} 52. Kf7 {[%emt 0:00:06]} f4 {[%emt 0:00:19] Black mates.} 53. Kg7 {[%emt 0:00:14]} Qd7+ {[%emt 0:00:10]} 54. Kh8 {[%emt 0:00:06]} Qe8+ {[%emt 0:00:23]} 55. Kh7 {[%emt 0:00:09]} Qg6+ {[%emt 0:00:10]} 56. Kh8 {[%emt 0:00:06]} Qf6+ {[%emt 0:00:23]} 57. Kh7 {[%emt 0:00:08]} Qf5+ {[%emt 0:00:06]} 58. Kg7 {[%emt 0:00:12]} h5 {[%emt 0:00:44]} 59. Qc1 {[%emt 0:02:26]} Qe5+ {[%emt 0:00:33]} 60. Kh7 {[%emt 0:00:06]} Qe4+ {[%emt 0:00:17]} 61. Kg7 {[%emt 0:04:35]} Qe7+ {[%emt 0:00:32]} 62. Kh8 {[%emt 0:00:00]} Qe3 {[%emt 0:00:15] Weighted Error Value: White=0.47/Black=0.14 (very precise)} (62... h4 $142 63. Kg8 Kf6 64. Qxf4+ Kg6 65. Qg4+ Kh6 66. Qf4+ Qg5+ 67. Qxg5+ Kxg5 68. Kf8 h3 69. Ke8 h2 70. Ke7 h1=Q 71. Kd6 Qc1 72. Kd5 Qc3 73. Kd6 Kf6 74. Kd5 Qb4 75. Kc6 Ke6 76. Kc7 Qb5 77. Kc8 Kd6 78. Kd8 Qd7#) 0-1

[Event "1st Bella Italia International 2022"]
[Site "Lignano"]
[Date "2022.08.20"]
[Round "6.7"]
[White "Bommini Mounika Akshaya"]
[Black "Priyanka Nutakki"]
[Result "1/2-1/2"]
[ECO "D09"]
[WhiteElo "2107"]
[BlackElo "2308"]
[Annotator "TA"]
[PlyCount "66"]
[EventDate "2022.08.18"]
[EventCountry "ITA"]
[SourceTitle "playchess.com"]
[Source "ChessBase"]
[SourceQuality "1"]
[TimeControl "5400+30"]

{[%evp 11,66,60,37,29,46,26,43,12,14,12,6,13,12,0,0,-17,-11,-19,-14,-8,0,-37,0,0,0,0,39,40,52,20,39,20,57,58,59,64,59,59,59,59,70,54,91,0,0,0,2,0,0,0,4,0,0,0,0,0,0]} 1. d4 {[%emt 0:06:28][%cal Bd2d4,Bd4e5][%mdl 32]} d5 {[%emt 0:00:13]} 2. c4 {[%emt 0:00:08]} e5 {[%emt 0:00:57]} 3. dxe5 {[%emt 0:00:07]} d4 {[%emt 0:00:04]} 4. Nf3 {[%emt 0:00:11]} Nc6 {[%emt 0:00:07]} 5. g3 {[%emt 0:00:44]} Nge7 {[%emt 0:00:23][%cal Bg8e7,Be7g6,Bg6e5][%mdl 32]} 6. Bg2 {[%emt 0:00:36]} Ng6 {[%emt 0:00:09]} 7. Nbd2 {[%emt 0:02:36] D09: Albin Counter Gambit: Main line with 5 g3.} Ngxe5 {[%emt 0:01:19]} 8. O-O {[%emt 0:00:36]} Be7 {[%emt 0:01:31]} 9. b3 {[%emt 0:03:28] White is slightly better.} a5 {[%emt 0:05:00]} 10. a3 {[%emt 0:01:50]} O-O {[%emt 0:01:24]} 11. Bb2 {[%emt 0:01:27] [#]} Be6 $146 {[%emt 0:17:06]} ({Predecessor:} 11... Ra6 12. Qc2 Re8 13. Rad1 d3 14. exd3 Qxd3 15. Ne1 Qxc2 16. Nxc2 Bg4 17. Rb1 Nd3 {½-½ (41) Steingrimsson,H (2536)-Stopa,J (2498) Bratto 2014}) 12. Nxe5 {[%emt 0:13:10]} Nxe5 {[%emt 0:00:02]} 13. Nf3 {[%emt 0:08:34]} Nxf3+ {[%emt 0:00:14]} 14. Bxf3 {[%emt 0:00:05]} c5 {[%emt 0:00:24]} 15. Qd3 {[%emt 0:01:06]} Qb6 {[%emt 0:10:50]} 16. a4 {[%emt 0:08:07]} Rad8 {[%emt 0:00:50]} 17. e3 {[%emt 0:05:28]} h6 {[%emt 0:17:11]} 18. h4 {[%emt 0:09:38]} f5 {[%emt 0:02:21]} 19. Rfe1 {[%emt 0:04:25]} Bf6 {[%emt 0:00:49]} 20. Rad1 {[%emt 0:02:45]} Bf7 {[%emt 0:07:16] [#] ...dxe3 is the strong threat.} 21. Qxf5 {[%emt 0:10:00]} (21. exd4 {looks sharper.} Bxd4 22. Bxd4 Rxd4 23. Qc2) 21... dxe3 {[%emt 0:03:10]} 22. Bxf6 {[%emt 0:03:17]} Rxd1 {[%emt 0:02:00]} 23. Rxd1 {[%emt 0:01:16]} Be6 $1 {[%emt 0:06:21] [#]} 24. Qd3 {[%emt 0:08:49] aiming for Bd8.} exf2+ {[%emt 0:02:34]} 25. Kxf2 {[%emt 0:00:05]} Rxf6 {[%emt 0:00:06]} 26. Kg2 $1 {[%emt 0:02:10] White is more active.} Bf5 {[%emt 0:04:52]} 27. Be4 {[%emt 0:01:53]} (27. Qd5+ $16 Kh7 28. g4 (28. Qxb7 Qxb7 29. Bxb7 Rb6 $16)) 27... Bxe4+ $11 {[%emt 0:03:29] The position is equal.} 28. Qxe4 {[%emt 0:00:01][%mdl 4096] Endgame KQR-KQR} Rf8 {[%emt 0:01:03]} 29. Rd3 {[%emt 0:01:21]} Kh8 {[%emt 0:01:51]} 30. Rf3 {[%emt 0:00:58][%cal Rf3f8]} Rd8 {[%emt 0:02:34]} 31. Rd3 {[%emt 0:00:06]} Rf8 {[%emt 0:00:08]} 32. Rf3 {[%emt 0:00:07][%cal Rf3f8]} Rd8 {[%emt 0:00:04]} 33. Rd3 {[%emt 0:00:04]} Rf8 {[%emt 0:00:09] Weighted Error Value: White=0.12 (very precise) /Black=0.07 (flawless)} 1/2-1/2

[Event "1st Bella Italia International 2022"]
[Site "Lignano"]
[Date "2022.08.20"]
[Round "6.9"]
[White "Micottis, Dorian"]
[Black "Grigorian, Roudolph"]
[Result "1/2-1/2"]
[WhiteElo "2263"]
[BlackElo "2101"]
[Annotator "TA"]
[PlyCount "15"]
[EventDate "2022.08.18"]
[EventCountry "ITA"]
[SourceTitle "playchess.com"]
[Source "ChessBase"]
[SourceQuality "1"]
[TimeControl "5400+30"]

{[%evp 9,15,1,33,33,56,33,22,14]} 1. e4 {[%emt 0:02:54]} e5 {[%emt 0:00:13]} 2. Nf3 {[%emt 0:00:06]} Nc6 {[%emt 0:00:06]} 3. Nc3 {[%emt 0:00:30][%cal Bb1c3,Bc3d5,Bd5f6][%mdl 32]} Nf6 {[%emt 0:00:14]} 4. Be2 {[%emt 0:00:05]} Bb4 {[%emt 0:01:10]} 5. Nd5 {[%emt 0:00:10]} Ba5 {[%emt 0:03:12]} 6. O-O {[%emt 0:00:13] C47: Scotch Four Knights and Four Knights with 4 g3.} d6 {[%emt 0:01:04]} 7. d4 {[%emt 0:02:44] Black must now prevent Bg5.} h6 {[%emt 0:10:21] [#] Against Bg5} 8. Nxf6+ $146 {[%emt 0:11:14]} ({Predecessor:} 8. c3 exd4 9. Nxd4 Bb6 10. Nxb6 axb6 11. c4 O-O 12. f3 Nxd4 13. Qxd4 Nd7 14. Be3 {1-0 (39) Skripchenko,A (2449)-Stetsko,L (2245) Plovdiv 2014}) 1/2-1/2